bitfinex-derivatives/quotes_ETHF0:USTF0_20250427
["timestamp","ask_amount","ask_price","bid_price","bid_amount"]
[1745721566689,1.10195,1814.2,1814.1,4.004]
[1745721566996,2.82185,1814.2,1814.1,4.004]
[1745721567304,2.82185,1814.2,1814.1,5.10601]
[1745721567492,2.82185,1814.2,1814.1,4.004]
[1745721568207,1.7199,1814.2,1814.1,5.10601]
[1745721568595,1.7199,1814.2,1814.1,7.58341]
[1745721570003,2.82185,1814.2,1814.1,6.4814]
[1745721570299,2.82185,1814.2,1814.1,7.58341]
[1745721571103,1.7199,1814.2,1814.1,7.58341]
[1745721582809,2.82185,1814.2,1814.1,4.004]
[1745721583312,1.7199,1814.2,1814.1,5.10601]
[1745721583914,1.7199,1814.2,1814.1,6.67061]
[1745721585415,2.82185,1814.2,1814.1,5.5686]
[1745721585614,2.1911654,1814.2,1814.1,6.67061]
[1745721586616,0.4712654,1814.2,1814.1,6.67061]
[1745721587517,0.4712654,1814.2,1814.1,9.87841]
[1745721590722,2.0330654,1814.2,1814.1,9.87841]
[1745721592322,0.4712654,1814.2,1814.1,9.87841]
[1745721597409,0.4712654,1814.2,1814.1,7.2118]
[1745721597410,1.5732154,1814.2,1814.1,7.2118]
[1745721597617,2.4021154,1814.2,1814.1,7.2118]
[1745721598326,2.4021154,1814.2,1814.1,8.31381]
[1745721598823,1.3001654,1814.2,1814.1,8.31381]
[1745721599022,1.3001654,1814.2,1814.1,9.87941]
[1745721600627,3.9762154,1814.2,1814.1,7.2118]
[1745721600825,3.9762154,1814.2,1814.1,4.004]
[1745721601522,1.10201,1814.1,1814.0,7.27580833]
[1745721601726,7.99161,1814.1,1814.0,7.27580833]
[1745721602028,13.4628754,1814.1,1814.0,7.27580833]
[1745721604422,7.3608654,1814.1,1814.0,8.37787833]
[1745721604620,6.0601654,1814.1,1814.0,7.27580833]
[1745721604821,6.0601654,1814.1,1814.0,8.37787833]
[1745721605331,6.0601654,1814.1,1814.0,1.10207]
[1745721605629,5.2531654,1814.1,1814.0,1.10207]
[1745721605822,6.0547654,1814.1,1814.0,1.10207]
[1745721606325,7.1568054,1814.1,1813.9,1.91962]
[1745721606627,1.6107,1814.0,1813.9,1.91962]
[1745721607022,2.0819654,1814.0,1813.9,1.91962]
[1745721608933,0.4712654,1814.0,1813.9,1.91962]
[1745721609137,0.4712654,1814.0,1813.9,3.56712]
[1745721610635,0.4712654,1814.0,1813.9,11.77492]
[1745721610833,0.4712654,1814.0,1813.9,6.77492]
[1745721611033,2.4881,1814.1,1814.0,1.10207]
[1745721611228,2.4881,1814.1,1814.0,5.09107]
[1745721611540,2.95784735,1814.1,1814.0,5.09107]
[1745721611835,3.59011,1814.1,1814.0,3.989]
[1745721612541,1.10207,1814.0,1813.9,3.988]
[1745721612837,3.53277,1814.0,1813.9,3.988]
[1745721613036,2.4307,1814.0,1813.9,5.09013]
[1745721613232,2.88154855,1814.0,1813.9,5.09013]
[1745721615835,2.88154855,1814.0,1813.9,3.988]
[1745721616134,3.98361855,1814.0,1813.9,3.988]
[1745721617442,2.88154855,1814.0,1813.9,5.09013]
[1745721617634,3.98361855,1814.0,1813.9,3.988]
[1745721617941,2.88154855,1814.0,1813.9,5.09013]
[1745721619141,2.04374855,1814.0,1813.9,5.09013]
[1745721619341,2.04374855,1814.0,1813.9,6.67203]
[1745721619546,2.04374855,1814.0,1813.9,9.87983]
[1745721619839,1.5929,1814.0,1813.9,10.68963]
[1745721620037,3.2078,1814.3,1814.2,1.10195]
[1745721620241,3.65876174,1814.3,1814.2,5.09095]
[1745721621338,5.22306174,1814.3,1814.2,5.09095]
[1745721621537,2.01526174,1814.3,1814.2,5.09095]
[1745721623037,2.01526174,1814.3,1814.2,7.57595]
[1745721625346,1.5643,1814.3,1814.2,7.57595]
[1745721626346,0.8053,1814.5,1814.4,1.10182]
[1745721626542,0.8053,1814.5,1814.2,6.474]
[1745721626543,1.5917,1814.6,1814.5,1.10176]
[1745721626746,1.5917,1814.6,1814.5,5.08976]
[1745721626942,2.04261201,1814.6,1814.5,5.08976]
[1745721627139,2.04261201,1814.6,1814.5,5.94626]
[1745721627641,1.5917,1814.6,1814.5,5.94626]
[1745721627843,0.8392,1814.7,1814.6,1.1017]
[1745721628050,1.28995092,1814.7,1814.6,1.6406]
[1745721628248,1.28995092,1814.7,1814.6,2.7423]
[1745721628546,2.88495092,1814.7,1814.6,2.7423]
[1745721629849,2.4342,1814.7,1814.6,2.7423]
[1745721630247,1.595,1814.7,1814.6,2.7423]
[1745721632249,1.595,1814.7,1814.6,5.9501]
[1745721632449,1.595,1814.7,1814.6,2.7423]
[1745721632950,1.595,1814.7,1814.6,5.9501]
[1745721633148,1.595,1814.7,1814.6,2.7423]
[1745721633448,3.2078,1815.0,1814.9,1.10152]
[1745721633643,1.5766,1815.1,1815.0,1.10146]
[1745721634143,1.5766,1815.1,1815.0,5.88966]
[1745721634657,0.8389,1815.3,1815.2,1.10134]
[1745721634846,2.4155,1815.3,1815.2,5.08934]
[1745721638257,1.5766,1815.3,1815.2,5.08934]
[1745721638458,2.3848,1815.3,1815.2,5.08934]
[1745721639551,2.3848,1815.3,1815.2,3.988]
[1745721639854,2.3848,1815.3,1815.2,5.08934]
[1745721640158,3.48608,1815.3,1815.2,3.988]
[1745721640958,3.93502272,1815.3,1815.2,3.988]
[1745721641658,1.1014,1815.1,1815.0,7.1868]
[1745721642366,1.916,1815.1,1815.0,7.1868]
[1745721642859,2.36500603,1815.1,1815.0,7.1868]
[1745721643253,2.36500603,1815.1,1815.0,3.979]
[1745721644961,1.10152,1814.9,1814.8,3.2078]
[1745721645160,1.10152,1814.9,1814.8,3.979]
[1745721645359,1.10152,1814.9,1814.7,7.27580833]
[1745721645360,1.10158,1814.8,1814.7,7.27580833]
[1745721645663,1.10176,1814.5,1814.4,7.1868]
[1745721645863,1.10174,1814.6,1814.4,8.28861]
[1745721646165,0.784,1814.5,1814.4,8.28861]
[1745721646463,2.3902,1814.5,1814.4,8.28861]
[1745721647758,3.49196,1814.5,1814.4,7.1868]
[1745721649264,3.94200221,1814.5,1814.4,7.1868]
[1745721649461,3.94200221,1814.5,1814.4,3.2078]
[1745721654962,1.10201,1814.1,1814.0,0.0087]
[1745721655165,1.10201,1814.1,1814.0,3.9887]
[1745721655967,3.23415221,1814.1,1814.0,3.9887]
[1745721657468,2.78411,1814.1,1814.0,3.9887]
[1745721661472,2.78411,1814.1,1814.0,4.8297]
[1745721661873,2.78411,1814.1,1814.0,4.821]
[1745721662273,3.2078,1814.2,1814.1,1.10201]
[1745721662473,3.2078,1814.2,1814.1,2.80541]
[1745721662774,4.30975,1814.2,1814.1,1.7034]
[1745721662971,5.99645,1814.2,1814.1,1.7034]
[1745721663178,5.99645,1814.2,1814.0,5.92302]
[1745721663367,1.6867,1814.1,1814.0,5.92302]
[1745721664267,4.30979,1814.2,1814.0,5.92302]
[1745721664476,4.30979,1814.2,1814.1,1.6292]
[1745721666773,5.97863,1814.3,1814.1,2.73121]
[1745721666973,4.8767,1814.3,1814.2,1.10195]
[1745721667173,1.10201,1814.1,1814.0,5.6451]
[1745721667375,1.10201,1814.1,1814.0,4.821]
[1745721667765,1.88611,1814.1,1814.0,4.821]
[1745721667965,3.54581,1814.1,1814.0,4.821]
[1745721668877,3.54581,1814.1,1814.0,5.92307]
[1745721668878,2.4438,1814.1,1814.0,5.92307]
[1745721669068,3.54581,1814.1,1814.0,5.92307]
[1745721669368,3.54581,1814.1,1814.0,4.821]
[1745721670173,3.54581,1814.1,1814.0,7.51527]
[1745721670373,3.54581,1814.1,1814.0,6.4132]
[1745721670880,3.54581,1814.1,1814.0,7.51527]
[1745721671677,3.54581,1814.1,1814.0,6.4132]
[1745721672775,3.99650553,1814.1,1814.0,6.4132]
[1745721673780,3.99650553,1814.1,1814.0,7.51527]
[1745721675178,3.99650553,1814.1,1814.0,6.4132]
[1745721676879,3.99650553,1814.1,1814.0,4.821]
[1745721677081,3.99650553,1814.1,1814.0,3.98]
[1745721677980,3.99746074,1814.1,1814.0,3.98]
[1745721683279,3.54581,1814.1,1814.0,3.98]
[1745721683488,3.99781486,1814.1,1814.0,3.98]
[1745721685182,1.10213,1813.9,1813.8,7.1818]
[1745721685585,1.55413486,1813.9,1813.8,7.1818]
[1745721685785,2.36673486,1813.9,1813.8,7.1818]
[1745721689391,2.36673486,1813.9,1813.8,3.974]
[1745721691780,1.55413486,1813.9,1813.8,5.07619]
[1745721692184,1.55413486,1813.9,1813.8,5.5896]
[1745721693091,1.55413486,1813.9,1813.8,6.69179]
[1745721693496,1.55413486,1813.9,1813.8,5.5896]
[1745721694694,1.55413486,1813.9,1813.8,3.974]
[1745721696193,0.45200486,1813.9,1813.8,5.07619]
[1745721696384,0.45200486,1813.9,1813.8,6.76409]
[1745721697289,2.15990486,1813.9,1813.8,6.76409]
[1745721700195,3.26203486,1813.9,1813.8,5.6619]
[1745721700396,3.26203486,1813.9,1813.8,3.974]
[1745721703297,2.15990486,1813.9,1813.8,5.07619]
[1745721703499,2.15990486,1813.9,1813.8,6.64949]
[1745721704097,3.26203486,1813.9,1813.8,6.64949]
[1745721704894,2.15990486,1813.9,1813.8,6.64949]
[1745721705284,3.26203486,1813.9,1813.8,6.64949]
[1745721705498,3.26203486,1813.9,1813.8,5.5473]
[1745721705690,3.26203486,1813.9,1813.8,3.974]
[1745721707700,3.26203486,1813.9,1813.8,5.07619]
[1745721707998,3.26203486,1813.9,1813.8,3.974]
[1745721709289,2.15990486,1813.9,1813.8,5.07619]
[1745721709492,2.15990486,1813.9,1813.8,6.75229]
[1745721710399,0.45200486,1813.9,1813.8,6.75229]
[1745721714394,0.45200486,1813.9,1813.8,11.75229]
[1745721714698,0.45200486,1814.3,1814.2,1.10195]
[1745721714898,2.18130486,1814.3,1814.2,5.06895]
[1745721715993,0.45200486,1814.3,1814.2,5.06895]
[1745721716399,2.12340486,1814.3,1814.2,5.06895]
[1745721716898,2.12340486,1814.3,1814.2,6.64055]
[1745721717702,0.8529,1814.5,1814.2,5.5386]
[1745721717897,0.8529,1814.5,1814.4,1.10182]
[1745721718098,1.30451915,1814.5,1814.4,1.10182]
[1745721719702,0.45161915,1814.5,1814.4,1.10182]
[1745721719903,0.45161915,1814.5,1814.4,2.78922]
[1745721720108,0.45161915,1814.5,1814.4,1.10182]
[1745721720512,3.23107915,1814.5,1814.3,5.13005]
[1745721720707,0.8291,1814.4,1814.3,5.13005]
[1745721720900,2.5068,1814.4,1814.3,3.2078]
[1745721721101,1.6777,1814.4,1814.3,4.30969]
[1745721721400,1.10169,1814.7,1814.3,9.8952]
[1745721721598,1.6777,1814.5,1814.3,4.8952]
[1745721721808,1.6777,1814.5,1814.4,1.10182]
[1745721722107,1.6777,1814.5,1814.4,2.70012]
[1745721722807,1.6099,1814.8,1814.4,1.5983]
[1745721723013,2.10113342,1814.7,1814.6,1.10167]
[1745721723308,3.20277342,1814.7,1814.6,1.5983]
[1745721723607,3.20277342,1814.7,1814.5,5.06772]
[1745721723914,2.71152,1814.8,1814.6,1.1017]
[1745721724805,0.45050387,1814.7,1814.6,1.1017]
[1745721725814,2.71152,1814.8,1814.6,1.1017]
[1745721726402,1.10164,1814.7,1814.5,7.51252]
[1745721726910,2.71152,1814.8,1814.6,1.1017]
[1745721727804,1.6099,1814.8,1814.5,6.4108]
[1745721728022,0.8291,1814.8,1814.7,1.10164]
[1745721728615,1.93068,1814.8,1814.6,2.74176]
[1745721729012,1.10164,1814.7,1814.6,2.74176]
[1745721730013,2.76193,1814.8,1814.6,2.74176]
[1745721730207,1.10164,1814.7,1814.6,2.74176]
[1745721730712,2.76193,1814.8,1814.6,2.74176]
[1745721731410,2.76193,1814.8,1814.6,3.58246]
[1745721733814,2.76193,1814.8,1814.7,1.10164]
[1745721733815,2.76188,1814.8,1814.7,1.10164]
[1745721734510,2.76188,1814.8,1814.6,3.58246]
[1745721735014,2.76188,1814.8,1814.7,1.10164]
[1745721735214,2.76188,1814.8,1814.6,2.4808]
[1745721735215,2.76188,1814.8,1814.6,3.58246]
[1745721735615,1.6603,1814.8,1814.5,3.966]
[1745721735818,6.41200141,1814.7,1814.3,3.958]
[1745721736112,1.10187,1814.4,1814.3,3.958]
[1745721736315,1.55192141,1814.4,1814.3,3.958]
[1745721736716,0.45005141,1814.4,1814.3,3.958]
[1745721736917,0.45005141,1814.4,1814.3,5.05989]
[1745721737117,2.74239,1814.5,1814.3,5.05989]
[1745721738826,1.10182,1814.4,1814.3,3.958]
[1745721739214,1.55239578,1814.4,1814.3,3.958]
[1745721740421,0.45057578,1814.4,1814.3,3.958]
[1745721740623,0.45057578,1814.4,1814.3,5.05989]
[1745721741725,2.13537578,1814.4,1814.3,5.05989]
[1745721742625,2.13537578,1814.4,1814.3,3.958]
[1745721742925,3.23719578,1814.4,1814.3,3.958]
[1745721744624,2.13537578,1814.4,1814.3,5.05989]
[1745721744822,2.13537578,1814.4,1814.3,6.65519]
[1745721745219,2.13537578,1814.4,1814.3,9.86299]
[1745721745220,0.45057578,1814.4,1814.3,9.86299]
[1745721745824,1.6569,1814.6,1814.5,1.10176]
[1745721746828,2.10839125,1814.6,1814.5,1.10176]
[1745721748730,2.10839125,1814.6,1814.4,3.2447]
[1745721748931,1.5733,1814.5,1814.4,4.34652]
[1745721749131,1.5733,1814.5,1814.4,2.75122]
[1745721749425,1.10182,1814.4,1814.3,7.1658]
[1745721749632,2.75222,1814.4,1814.3,7.1658]
[1745721749822,2.75222,1814.4,1814.3,3.958]
[1745721750027,4.82609413,1814.4,1814.3,3.958]
[1745721752745,2.87147413,1814.4,1814.3,5.05989]
[1745721753346,3.97329413,1814.4,1814.3,5.05989]
[1745721753646,2.07387413,1814.4,1814.3,5.05989]
[1745721753832,2.07387413,1814.4,1814.3,5.85779]
[1745721754240,1.6223,1814.4,1814.3,5.85779]
[1745721756448,3.17561184,1814.4,1814.3,5.85779]
[1745721756645,2.07379184,1814.4,1814.3,5.85779]
[1745721758245,2.07379184,1814.4,1814.3,9.06559]
[1745721759046,3.17561184,1814.4,1814.3,9.06559]
[1745721759248,2.07379184,1814.4,1814.3,9.06559]
[1745721760847,0.45149184,1814.4,1814.3,9.06559]
[1745721761546,1.6803,1814.7,1814.6,1.1017]
[1745721761746,1.6803,1814.7,1814.6,5.0597]
[1745721762146,1.6803,1814.7,1814.6,7.5128]
[1745721763352,2.78194,1814.7,1814.6,7.5128]
[1745721764550,1.6803,1814.7,1814.6,7.5128]
[1745721765151,2.78194,1814.7,1814.6,7.5128]
[1745721765543,1.6803,1814.7,1814.6,7.5128]
[1745721766452,2.78194,1814.7,1814.6,7.5128]
[1745721766753,1.6803,1814.7,1814.6,7.5128]
[1745721767451,2.78194,1814.7,1814.6,3.958]
[1745721767646,2.78194,1814.7,1814.6,5.0597]
[1745721770453,2.78194,1814.7,1814.6,3.958]
[1745721770855,3.62484,1814.7,1814.6,5.0597]
[1745721771846,3.62484,1814.7,1814.6,3.958]
[1745721772857,3.62484,1814.7,1814.6,5.0597]
[1745721773657,4.07180107,1814.7,1814.6,5.0597]
[1745721774458,4.07180107,1814.7,1814.6,3.958]
[1745721775250,1.10176,1814.5,1814.4,7.34433317]
[1745721775756,1.54872107,1814.5,1814.4,7.34433317]
[1745721775954,3.14142107,1814.5,1814.4,7.34433317]
[1745721776154,6.86342107,1814.5,1814.4,7.34433317]
[1745721779556,5.76166107,1814.5,1814.3,5.05189]
[1745721779757,4.03308107,1814.4,1814.3,5.05189]
[1745721780159,7.75508107,1814.4,1814.3,5.05189]
[1745721782661,7.75508107,1814.4,1814.3,3.95]
[1745721783266,7.75508107,1814.4,1814.3,5.05189]
[1745721784162,7.75508107,1814.4,1814.3,3.95]
[1745721786452,7.75508107,1814.4,1814.3,5.05189]
[1745721787162,7.75508107,1814.4,1814.3,5.90469]
[1745721787565,7.75508107,1814.4,1814.3,4.8028]
[1745721787862,7.75508107,1814.4,1814.3,3.95]
[1745721788465,1.10201,1814.1,1814.0,7.34433317]
[1745721788771,1.54897107,1814.1,1814.0,11.29533317]
[1745721789257,7.70247107,1814.1,1814.0,11.29533317]
[1745721789658,16.85216107,1814.1,1813.8,14.13809483]
[1745721789955,4.30993,1813.9,1813.8,11.91001483]
[1745721790152,8.57494112,1813.9,1813.8,11.91001483]
[1745721790459,14.40134112,1813.9,1813.8,11.91001483]
[1745721790858,9.40134112,1813.9,1813.8,11.91001483]
[1745721791065,9.30529107,1813.9,1813.8,11.91001483]
[1745721792566,14.30529107,1813.9,1813.8,10.45909483]
[1745721792761,14.30529107,1813.9,1813.4,54.50547667]
[1745721792762,1.10237,1813.5,1813.4,3.951]
[1745721793263,5.27133107,1813.5,1813.4,3.951]
[1745721793666,10.20633107,1813.5,1813.4,3.951]
[1745721793967,11.00353107,1813.5,1813.4,3.951]
[1745721794166,1.10255,1813.2,1813.1,0.8316]
[1745721794668,1.10255,1813.2,1813.1,2.4675]
[1745721795164,1.10255,1813.2,1813.1,3.57011]
[1745721796069,1.10255,1813.2,1813.1,2.4675]
[1745721796260,1.10255,1813.2,1813.1,3.57011]
[1745721796566,8.39253,1813.5,1813.2,1.10249]
[1745721796567,1.10253,1813.3,1813.2,1.10249]
[1745721796768,1.10253,1813.3,1813.2,2.75389]
[1745721796963,3.2078,1813.5,1813.3,1.10243]
[1745721797173,4.31021,1813.5,1813.4,2.75383]
[1745721797469,4.31017,1813.5,1813.4,2.75383]
[1745721799275,1.10237,1813.5,1813.4,2.75383]
[1745721799871,1.10235,1813.6,1813.5,1.10234]
[1745721800168,1.10235,1813.6,1813.5,1.88284]
[1745721801871,3.2078,1813.7,1813.6,1.10231]
[1745721802069,4.31005,1813.7,1813.6,6.75171]
[1745721802270,3.2078,1813.7,1813.6,6.75171]
[1745721802575,4.31005,1813.7,1813.6,6.75171]
[1745721803672,4.31005,1813.7,1813.6,5.6494]
[1745721803865,1.10225,1813.7,1813.6,5.6494]
[1745721804062,4.82425,1813.7,1813.6,5.6494]
[1745721805674,6.50345,1813.7,1813.6,5.6494]
[1745721805865,12.2132,1813.7,1813.3,3.2078]
[1745721806063,1.10249,1813.3,1813.2,3.945]
[1745721806870,1.10255,1813.2,1813.1,3.2078]
[1745721807070,1.10274,1812.9,1812.8,7.9919]
[1745721807376,1.10274,1812.9,1812.8,9.0947]
[1745721807574,1.10274,1812.9,1812.8,7.9919]
[1745721807874,1.10274,1812.9,1812.8,4.7841]
[1745721808072,1.10274,1812.9,1812.8,3.945]
[1745721808270,4.82474,1812.9,1812.8,3.945]
[1745721808674,6.39734,1812.9,1812.8,3.945]
[1745721809377,1.10292,1812.6,1812.5,4.7851]
[1745721809966,1.10298,1812.5,1812.4,18.33416486]
[1745721810166,6.54138,1812.5,1812.4,18.33416486]
[1745721810872,7.32898,1812.5,1812.4,18.33416486]
[1745721812182,1.10304,1812.4,1812.3,3.946]
[1745721812378,2.81944,1812.4,1812.3,3.946]
[1745721813274,6.54144,1812.4,1812.3,3.946]
[1745721813580,9.74924,1812.4,1812.3,3.946]
[1745721813769,1.10322,1812.1,1812.0,5.87788]
[1745721814172,4.82522,1812.1,1812.0,4.7746]
[1745721815182,1.10322,1812.1,1812.0,4.7746]
[1745721815576,2.78763,1812.3,1812.0,4.7746]
[1745721815881,1.10311,1812.3,1812.2,1.10311]
[1745721818085,4.31086,1812.4,1812.3,1.1031]
[1745721818274,1.10312,1812.3,1812.2,1.10311]
[1745721818476,4.31089,1812.4,1812.3,1.1031]
[1745721819084,8.03289,1812.4,1812.3,1.1031]
[1745721819583,1.1031,1812.3,1812.2,1.93381]
[1745721821084,4.8251,1812.3,1812.2,1.93381]
[1745721822382,2.673,1812.3,1812.2,1.10311]
[1745721822784,1.5699,1812.3,1812.2,2.72431]
[1745721823183,2.673,1812.3,1812.2,2.72431]
[1745721823586,1.5699,1812.3,1812.2,2.72431]
[1745721823777,1.10308,1812.4,1812.3,1.1031]
[1745721824087,1.10308,1812.4,1812.3,2.7243]
[1745721824277,4.82508,1812.4,1812.3,2.7243]
[1745721826987,3.722,1812.4,1812.3,2.7243]
[1745721827186,8.08885,1812.8,1812.3,2.7243]
[1745721827187,6.78815,1812.8,1812.3,5.5622]
[1745721827488,1.90727,1812.9,1812.8,1.1028]
[1745721827690,1.10282,1812.8,1812.7,2.81841]
[1745721828082,2.74302,1812.8,1812.7,1.7156]
[1745721828590,2.74302,1812.8,1812.7,2.81846]
[1745721831382,3.722,1812.9,1812.8,1.1028]
[1745721831585,3.2078,1813.2,1813.1,1.10261]
[1745721832287,3.2078,1813.2,1813.1,2.66631]
[1745721832490,1.10255,1813.2,1813.1,2.66631]
[1745721832786,1.10255,1813.2,1813.1,2.66628]
[1745721832995,1.10255,1813.2,1813.1,1.5637]
[1745721833884,1.10261,1813.1,1813.0,3.941]
[1745721834283,1.54815926,1813.1,1813.0,3.941]
[1745721834479,3.27655926,1813.1,1813.0,3.941]
[1745721835190,3.27655926,1813.1,1813.0,5.04368]
[1745721835787,3.27655926,1813.1,1813.0,3.941]
[1745721836180,1.1028,1812.8,1812.7,5.6465]
[1745721836382,5.51352,1813.0,1812.6,5.09298]
[1745721836383,1.10286,1812.7,1812.6,7.9311]
[1745721836581,2.83126,1812.7,1812.6,9.03402]
[1745721836983,3.27680926,1812.7,1812.6,9.03402]
[1745721837191,3.27680926,1812.7,1812.6,7.9311]
[1745721837491,3.27680926,1812.7,1812.6,9.03402]
[1745721838091,3.27680926,1812.7,1812.6,10.68942]
[1745721838393,3.27680926,1812.7,1812.6,7.1488]
[1745721838700,3.27680926,1812.7,1812.6,3.941]
[1745721839991,1.10298,1812.5,1812.4,1.10303]
[1745721840393,1.54852926,1812.5,1812.4,1.10303]
[1745721840591,3.11722926,1812.5,1812.4,1.10303]
[1745721842595,3.11722926,1812.5,1812.4,2.70553]
[1745721843295,3.11722926,1812.5,1812.4,1.6025]
[1745721843489,1.10322,1812.2,1812.1,1.10322]
[1745721843681,1.10322,1812.2,1812.1,6.67482]
[1745721843884,2.73082,1812.2,1812.1,5.5716]
[1745721844094,2.73082,1812.2,1812.0,5.98015]
[1745721844095,1.10322,1812.1,1812.0,3.941]
[1745721844284,6.72742,1812.1,1812.0,3.941]
[1745721844492,7.17296926,1812.1,1812.0,3.941]
[1745721845794,7.17296926,1812.1,1812.0,5.04428]
[1745721845991,7.17296926,1812.1,1812.0,3.941]
[1745721848402,6.38416926,1812.1,1812.0,3.941]
[1745721848595,6.38416926,1812.1,1812.0,5.04428]
[1745721849299,0.44554926,1812.1,1812.0,5.04428]
[1745721849698,1.10313,1812.3,1812.2,1.10316]
[1745721850193,1.10316,1812.2,1812.1,7.59224]
[1745721850398,1.10316,1812.2,1812.1,5.89004]
[1745721850600,3.2078,1812.4,1812.1,9.7869]
[1745721850798,4.05804,1812.6,1812.1,9.7869]
[1745721850799,1.10303,1812.5,1812.4,1.10304]
[1745721851395,1.10304,1812.4,1812.3,8.25288]
[1745721851588,1.10304,1812.4,1812.3,5.0451]
[1745721852002,1.10302,1812.5,1812.4,1.103]
[1745721853001,1.10304,1812.4,1812.3,3.942]
[1745721854298,1.10316,1812.2,1812.1,4.7869]
[1745721854594,1.10316,1812.2,1812.1,8.7279]
[1745721854791,1.10316,1812.2,1812.1,9.83112]
[1745721855799,1.10315,1812.3,1812.2,1.10313]
[1745721856002,1.10308,1812.4,1812.3,1.10307]
[1745721856204,1.10302,1812.5,1812.4,1.10301]
[1745721856505,1.10307,1812.4,1812.3,1.10305]
[1745721856803,1.10307,1812.4,1812.3,8.24585]
[1745721857101,4.31076,1812.6,1812.5,1.10298]
[1745721857498,1.10301,1812.5,1812.4,1.10299]
[1745721858598,1.10297,1812.6,1812.5,1.10296]
[1745721860699,1.10284,1812.8,1812.7,1.10286]
[1745721860902,1.10286,1812.7,1812.6,5.5932]
[1745721861299,1.10286,1812.7,1812.6,6.69612]
[1745721862001,4.82485,1812.8,1812.7,1.10286]
[1745721862200,1.10285,1812.8,1812.7,2.81146]
[1745721862998,1.10285,1812.8,1812.7,1.7086]
[1745721863804,1.7149,1812.9,1812.6,6.69612]
[1745721863805,1.10286,1812.7,1812.6,5.5932]
[1745721864001,2.81776,1812.7,1812.6,4.7961]
[1745721864201,6.53976,1812.7,1812.6,3.935]
[1745721865308,1.10304,1812.4,1812.3,8.24587]
[1745721865497,1.10304,1812.4,1812.3,9.97287]
[1745721865899,2.79461,1812.5,1812.4,1.10304]
[1745721866097,2.79461,1812.5,1812.4,2.83004]
[1745721867612,1.10304,1812.4,1812.3,8.24587]
[1745721867811,2.78934,1812.4,1812.3,3.935]
[1745721868206,6.51134,1812.4,1812.3,3.935]
[1745721869112,6.51134,1812.4,1812.3,5.0381]
[1745721869308,6.51134,1812.4,1812.3,6.5984]
[1745721869807,6.51134,1812.4,1812.3,5.4953]
[1745721870015,3.722,1812.4,1812.3,9.8062]
[1745721870207,1.10291,1812.7,1812.6,1.10289]
[1745721870406,1.10286,1812.7,1812.6,5.03792]
[1745721870907,1.10286,1812.7,1812.6,7.48792]
[1745721872511,1.10286,1812.7,1812.6,6.385]
[1745721872717,1.10286,1812.7,1812.6,7.48792]
[1745721874615,1.10286,1812.7,1812.6,6.385]
[1745721874812,1.10286,1812.7,1812.6,7.48792]
[1745721877409,1.10285,1812.8,1812.7,1.10281]
[1745721877609,1.10285,1812.8,1812.7,2.69901]
[1745721877812,1.10278,1812.9,1812.8,1.1028]
[1745721878010,1.10278,1812.9,1812.8,3.5078]
[1745721878312,3.2078,1813.2,1812.9,1.10274]
[1745721878613,6.00539,1813.2,1813.1,1.10261]
[1745721878808,6.59271078,1813.4,1813.3,1.10249]
[1745721879003,6.59271078,1813.4,1813.3,5.03749]
[1745721879217,8.28771078,1813.4,1813.3,3.935]
[1745721879408,8.28771078,1813.4,1813.3,5.5312]
[1745721882716,14.94136078,1813.4,1812.9,3.2078]
[1745721882921,1.10274,1812.9,1812.8,5.0368]
[1745721883222,1.10274,1812.9,1812.8,6.6337]
[1745721883821,2.7585,1813.0,1812.9,1.10274]
[1745721884021,2.7585,1813.0,1812.9,1.5969]
[1745721884521,1.1027,1813.0,1812.9,1.5969]
[1745721886118,4.8247,1813.0,1812.9,1.5969]
[1745721887225,1.1027,1813.0,1812.9,1.5969]
[1745721888025,1.1027,1813.0,1812.9,2.69964]
[1745721888826,2.75848,1813.1,1813.0,1.10268]
[1745721889014,2.75848,1813.1,1813.0,1.5888]
[1745721889429,2.75848,1813.1,1813.0,2.69148]
[1745721889830,2.75848,1813.1,1813.0,1.5888]
[1745721890221,2.75848,1813.1,1813.0,2.69148]
[1745721890825,2.75848,1813.1,1813.0,1.5888]
[1745721891129,6.48048,1813.1,1813.0,2.69148]
[1745721892128,2.75848,1813.1,1813.0,2.69148]
[1745721892328,4.31039,1813.2,1813.1,1.10261]
[1745721892627,4.31039,1813.2,1813.1,8.40271]
[1745721893228,1.10259,1813.2,1813.1,7.3001]
[1745721893531,1.10259,1813.2,1813.1,3.928]
[1745721893732,2.78949,1813.2,1813.1,3.928]
[1745721894122,6.51149,1813.2,1813.1,3.928]
[1745721899940,1.10274,1812.9,1812.8,4.7437]
[1745721900334,1.10274,1812.9,1812.8,3.928]
[1745721900535,1.10274,1812.9,1812.4,5.9654]
[1745721900536,1.10292,1812.6,1812.5,3.928]
[1745721901137,4.82492,1812.6,1812.5,3.928]
[1745721901633,7.26462,1812.6,1812.5,3.928]
[1745721902231,7.26462,1812.6,1812.5,5.5867]
[1745721902434,7.26462,1812.6,1812.5,6.68968]
[1745721902630,7.26462,1812.6,1812.5,5.5867]
[1745721903733,7.26462,1812.6,1812.5,6.68968]
[1745721903944,4.82492,1812.6,1812.5,6.68968]
[1745721904136,1.10292,1812.6,1812.5,6.68968]
[1745721904735,4.8228,1812.9,1812.5,5.5867]
[1745721905043,1.10286,1812.7,1812.6,3.53766]
[1745721905634,2.78713,1812.8,1812.7,1.10286]
[1745721905836,2.78713,1812.8,1812.7,2.4919]
[1745721906039,2.78713,1812.8,1812.7,3.59476]
[1745721906236,2.78713,1812.8,1812.7,0.8621]